bitfinex/quotes_BTCUSD_20240905
["timestamp","ask_amount","ask_price","bid_price","bid_amount"]
[1725562892943,2.84387977,56627.0,56626.0,0.00164]
[1725562893185,2.79222784,56627.0,56626.0,0.00164]
[1725562893421,2.50983942,56627.0,56626.0,0.00164]
[1725562893653,2.03292694,56627.0,56626.0,0.00164]
[1725562893892,1.7300969,56627.0,56626.0,0.00164]
[1725562894133,1.2769089,56627.0,56626.0,0.25444]
[1725562894364,1.2769089,56627.0,56626.0,0.00164]
[1725562894365,1.2679089,56627.0,56626.0,0.00164]
[1725562894857,1.2819089,56627.0,56626.0,0.00164]
[1725562895300,1.4139089,56627.0,56626.0,0.00164]
[1725562895771,1.4049089,56627.0,56626.0,0.00164]
[1725562896004,1.4149089,56627.0,56626.0,0.00164]
[1725562896236,1.4009089,56627.0,56626.0,0.00164]
[1725562896465,1.3779089,56627.0,56626.0,0.00184]
[1725562897175,1.3779089,56627.0,56626.0,0.00164]
[1725562897176,1.3879089,56627.0,56626.0,0.00164]
[1725562897665,1.56276746,56627.0,56626.0,0.00164]
[1725562897890,1.44076746,56627.0,56626.0,0.00164]
[1725562898109,1.46376746,56627.0,56626.0,0.00164]
[1725562899300,1.4109089,56627.0,56626.0,0.00164]
[1725562899551,1.44955844,56627.0,56626.0,0.00164]
[1725562900008,1.45037444,56627.0,56626.0,0.00164]
[1725562900926,1.37541828,56627.0,56626.0,0.25894]
[1725562901371,0.21585428,56627.0,56626.0,0.25894]
[1725562901602,0.03926028,56627.0,56626.0,0.25894]
[1725562901826,0.21585428,56627.0,56626.0,0.25894]
[1725562902279,0.20585428,56627.0,56626.0,0.25894]
[1725562902738,0.19585428,56627.0,56626.0,0.25994]
[1725562902972,0.19585428,56627.0,56626.0,0.26194]
[1725562903207,0.19585428,56627.0,56626.0,0.25894]
[1725562903443,0.19585428,56627.0,56626.0,0.25994]
[1725562903705,0.55004228,56627.0,56626.0,0.26394]
[1725562903941,0.90323028,56627.0,56626.0,0.26394]
[1725562904410,1.25641828,56627.0,56626.0,0.00684]
[1725562905134,1.25641828,56627.0,56626.0,0.00584]
[1725562905597,1.25641828,56627.0,56626.0,0.00684]
[1725562906053,1.25641828,56627.0,56626.0,0.00584]
[1725562906305,1.25741828,56627.0,56626.0,0.00184]
[1725562906534,1.25741828,56627.0,56626.0,0.00384]
[1725562906781,1.25741828,56627.0,56626.0,0.00184]
[1725562907251,1.25841828,56627.0,56626.0,0.00184]
[1725562908312,0.90523028,56627.0,56626.0,0.00184]
[1725562908535,0.90523028,56627.0,56626.0,0.26844]
[1725562908768,0.90523028,56627.0,56626.0,0.00184]
[1725562910130,0.55204228,56627.0,56626.0,0.00184]
[1725562910351,0.90523028,56627.0,56626.0,0.00184]
[1725562910569,1.25841828,56627.0,56626.0,0.00184]
[1725562918726,0.90523028,56627.0,56626.0,0.00184]
[1725562918961,0.90523028,56627.0,56626.0,0.15134]
[1725562920341,0.55204228,56627.0,56626.0,0.15134]
[1725562920542,0.02226028,56627.0,56626.0,0.447837]
[1725562920775,0.02226028,56627.0,56626.0,0.801031]
[1725562920997,0.02226028,56627.0,56626.0,0.27124]
[1725562921222,0.02026028,56627.0,56626.0,0.27124]
[1725562921470,0.55004228,56627.0,56626.0,0.27124]
[1725562921721,1.25741828,56627.0,56626.0,0.00384]
[1725562922180,1.25641828,56627.0,56626.0,0.00184]
[1725562922409,1.25541828,56627.0,56626.0,0.00184]
[1725562922680,1.25741828,56627.0,56626.0,0.00784]
[1725562922890,1.25641828,56627.0,56626.0,0.00384]
[1725562923098,1.25541828,56627.0,56626.0,0.00184]
[1725562923320,1.25541828,56627.0,56626.0,0.00384]
[1725562924944,1.25541828,56627.0,56626.0,0.00484]
[1725562925159,1.25541828,56627.0,56626.0,0.00284]
[1725562925382,1.25541828,56627.0,56626.0,0.00184]
[1725562925602,1.25641828,56627.0,56626.0,0.00184]
[1725562925849,1.25841828,56627.0,56626.0,0.00184]
[1725562926282,0.90523028,56627.0,56626.0,0.00184]
[1725562927173,1.25841828,56627.0,56626.0,0.00184]
[1725562927823,0.90523028,56627.0,56626.0,0.26394]
[1725562928726,0.90323028,56627.0,56626.0,0.26394]
[1725562928963,0.90223028,56627.0,56626.0,0.26394]
[1725562929198,0.90423028,56627.0,56626.0,0.26394]
[1725562929700,0.90223028,56627.0,56626.0,0.26694]
[1725562929942,0.90223028,56627.0,56626.0,0.26894]
[1725562930182,0.01926028,56627.0,56626.0,0.798731]
[1725562930709,0.01926028,56627.0,56626.0,1.151925]
[1725562930959,0.01926028,56627.0,56626.0,0.98624196]
[1725562931194,0.01926028,56627.0,56626.0,1.33943596]
[1725562931438,0.01926028,56627.0,56626.0,1.33643596]
[1725562931868,0.01926028,56627.0,56626.0,1.33743596]
[1725562932080,0.01926028,56627.0,56626.0,1.33643596]
[1725562932318,0.01926028,56627.0,56626.0,1.68962996]
[1725562932527,0.01926028,56627.0,56626.0,1.78417989]
[1725562932528,0.02026028,56627.0,56626.0,1.78417989]
[1725562932758,0.02026028,56627.0,56626.0,1.81066021]
[1725562932982,0.02026028,56627.0,56626.0,1.81258197]
[1725562933247,0.02126028,56627.0,56626.0,1.19451431]
[1725562933493,0.02126028,56627.0,56626.0,1.187925]
[1725562933719,0.02026028,56627.0,56626.0,1.183925]
[1725562934364,0.01926028,56627.0,56626.0,1.176925]
[1725562934798,0.02026028,56627.0,56626.0,1.537119]
[1725562935027,0.01926028,56627.0,56626.0,1.530119]
[1725562935495,0.02126028,56627.0,56626.0,1.71862996]
[1725562935977,0.02026028,56627.0,56626.0,1.72921925]
[1725562936200,0.02026028,56627.0,56626.0,1.71262996]
[1725562936436,0.02126028,56627.0,56626.0,1.189925]
[1725562936679,0.02126028,56627.0,56626.0,1.179925]
[1725562938081,0.02126028,56627.0,56626.0,0.335437]
[1725562938540,0.02126028,56627.0,56626.0,1.04535655]
[1725562938719,0.02126028,56627.0,56626.0,1.041825]
[1725562939015,0.02026028,56627.0,56626.0,1.035825]
[1725562939202,0.01926028,56627.0,56626.0,1.028825]
[1725562939445,0.02026028,56627.0,56626.0,0.681631]
[1725562939674,0.02126028,56627.0,56626.0,0.688631]
[1725562940806,0.02126028,56627.0,56626.0,1.041825]
[1725562941269,0.02126028,56627.0,56626.0,1.151925]
[1725562941510,0.02126028,56627.0,56626.0,1.515119]
[1725562941944,0.02126028,56627.0,56626.0,1.78890118]
[1725562943554,0.02126028,56627.0,56626.0,1.98441214]
[1725562943766,0.02126028,56627.0,56626.0,2.33960614]
[1725562944194,0.02126028,56627.0,56626.0,2.49250227]
[1725562944410,0.02126028,56627.0,56626.0,2.49248091]
[1725562945277,0.02126028,56627.0,56626.0,2.84567491]
[1725562945518,0.02126028,56627.0,56626.0,2.4561951]
[1725562945755,0.02126028,56627.0,56626.0,2.53553929]
[1725562945968,0.002816,56627.0,56626.0,2.53553929]
[1725562946846,0.002816,56627.0,56626.0,2.4561951]
[1725562947071,0.002816,56627.0,56626.0,2.5717562]
[1725562947322,0.002816,56627.0,56626.0,2.58834274]
[1725562948178,0.002816,56627.0,56626.0,3.18558068]
[1725562948412,0.000816,56643.0,56642.0,0.186747]
[1725562948655,0.000816,56643.0,56642.0,1.59392814]
[1725562948873,0.000816,56643.0,56642.0,1.94702214]
[1725562949102,0.01926028,56643.0,56642.0,1.94702214]
[1725562949331,0.01926028,56643.0,56642.0,1.023935]
[1725562949548,0.01926028,56643.0,56642.0,0.882935]
[1725562950698,0.02026028,56643.0,56642.0,0.889935]
[1725562950921,0.01926028,56643.0,56642.0,0.882935]
[1725562951337,0.02026028,56643.0,56642.0,0.893935]
[1725562952010,0.02026028,56643.0,56642.0,0.901935]
[1725562953358,0.02026028,56643.0,56642.0,0.195747]
[1725562953580,0.02026028,56643.0,56642.0,0.548841]
[1725562954255,0.02026028,56643.0,56642.0,0.901935]
[1725562959236,0.02026028,56643.0,56642.0,1.160035]
[1725562959883,0.02026028,56643.0,56642.0,1.513129]
[1725562961266,0.02026028,56643.0,56642.0,2.32751614]
[1725562961481,0.02026028,56643.0,56642.0,2.33751614]
[1725562961691,0.02026028,56643.0,56642.0,2.32751614]
[1725562962105,0.02026028,56643.0,56642.0,2.31951614]
[1725562963143,0.01926028,56643.0,56642.0,2.30851614]
[1725562963734,0.02026028,56643.0,56642.0,2.32751614]
[1725562963934,0.02026028,56643.0,56642.0,2.30851614]
[1725562964162,0.01926028,56643.0,56642.0,2.30851614]
[1725562964380,0.02026028,56643.0,56642.0,2.32251614]
[1725562964794,0.02026028,56643.0,56642.0,2.33651614]
[1725562964983,0.02026028,56643.0,56642.0,2.33451614]
[1725562965230,0.02026028,56643.0,56642.0,2.33651614]
[1725562967155,2.8e-07,56644.0,56643.0,1.870396]
[1725562967361,2.8e-07,56644.0,56643.0,2.51557907]
[1725562967577,2.8e-07,56644.0,56643.0,2.16249107]
[1725562968021,2.8e-07,56644.0,56643.0,2.14590696]
[1725562968435,2.8e-07,56644.0,56643.0,2.17390696]
[1725562968436,0.00100028,56644.0,56643.0,2.17390696]
[1725562969110,0.00100028,56644.0,56643.0,1.81881896]
[1725562969312,0.00100028,56644.0,56643.0,1.79881896]
[1725562969724,0.00100028,56644.0,56643.0,1.81881896]
[1725562970187,0.00100028,56644.0,56643.0,1.80481896]
[1725562970656,0.00100028,56644.0,56643.0,1.81881896]
[1725562971413,0.00100028,56644.0,56643.0,1.79881896]
[1725562971687,0.00100028,56644.0,56643.0,1.81881896]
[1725562973338,0.00100028,56644.0,56643.0,1.83540336]
[1725562973559,0.00100028,56644.0,56643.0,1.83740336]
[1725562974693,0.00100028,56644.0,56643.0,1.82081896]
[1725562974902,0.00100028,56644.0,56643.0,1.83740335]
[1725562976941,0.00100028,56644.0,56643.0,1.83540335]
[1725562978027,0.00100028,56644.0,56643.0,1.83740335]
[1725562978236,0.00100028,56644.0,56643.0,1.83540335]
[1725562978920,0.00100028,56644.0,56643.0,1.83740335]
[1725562979433,0.00100028,56644.0,56643.0,1.81881896]
[1725562979649,0.00100028,56644.0,56643.0,1.83540297]
[1725562979882,0.00100028,56644.0,56643.0,1.83540321]
[1725562982018,0.00100028,56644.0,56643.0,1.81881896]
[1725562982262,0.00100028,56644.0,56643.0,1.83540346]
[1725562982480,0.00100028,56644.0,56643.0,1.83740346]
[1725562983162,0.00100028,56644.0,56643.0,1.83903546]
[1725562983383,0.00100028,56644.0,56643.0,1.83703546]
[1725562983611,0.00100028,56644.0,56643.0,1.83703542]
[1725562985432,0.00100028,56644.0,56643.0,1.83903542]
[1725562987814,0.00100028,56644.0,56643.0,2.65090191]
[1725562988032,0.00100028,56644.0,56643.0,2.70032453]
[1725562988285,0.00100028,56644.0,56643.0,2.34723653]
[1725562988515,0.00100028,56644.0,56643.0,2.34742249]
[1725562988740,0.00100028,56644.0,56643.0,2.34742083]
[1725562989436,0.00100028,56644.0,56643.0,2.21512176]
[1725562991938,0.00100028,56644.0,56643.0,2.19853896]
[1725562992166,0.00100028,56644.0,56643.0,2.21512176]
[1725562992873,0.00100028,56644.0,56643.0,2.56820976]
[1725562993562,0.00100028,56644.0,56643.0,2.72706495]
[1725562993790,0.00100028,56644.0,56643.0,2.56820976]
[1725562994495,0.00100028,56644.0,56643.0,2.7040263]
[1725562995470,0.00100028,56644.0,56643.0,2.3509383]
[1725562995719,0.00100028,56644.0,56643.0,2.19212176]
[1725562995958,0.00100028,56644.0,56643.0,2.46590394]
[1725562996189,0.00100028,56644.0,56643.0,2.81899194]
[1725562998491,0.00100028,56644.0,56643.0,2.81899124]
[1725563000243,0.00100028,56644.0,56643.0,2.81699124]
[1725563000474,0.00100028,56644.0,56643.0,2.81899124]
[1725563000696,0.02676883,56662.0,56661.0,0.529664]
[1725563002108,0.38055505,56674.0,56670.0,0.17666]
[1725563002349,0.352898,56674.0,56670.0,0.0002]
[1725563002576,0.176451,56673.0,56670.0,0.17666]
[1725563003042,0.176448,56674.0,56670.0,0.52958]
[1725563003282,0.176451,56673.0,56670.0,0.52958]
[1725563003714,0.255417,56671.0,56670.0,0.8825]
[1725563004361,0.112817,56671.0,56670.0,0.8825]
[1725563004587,0.112817,56671.0,56670.0,1.23542]
[1725563006308,0.111817,56671.0,56670.0,1.23542]
[1725563006728,0.111817,56671.0,56670.0,0.8855]
[1725563006937,0.111817,56671.0,56670.0,0.8845]
[1725563007369,0.111817,56671.0,56670.0,0.8935]
[1725563008235,0.111817,56671.0,56670.0,0.8915]
[1725563008865,0.000817,56671.0,56670.0,1.52520218]
[1725563009484,0.000817,56671.0,56670.0,1.17228218]
[1725563010575,0.000817,56671.0,56670.0,0.8985]
[1725563010808,0.000817,56671.0,56670.0,0.54558]
[1725563011024,0.106817,56671.0,56670.0,0.0162]
[1725563011256,0.106817,56671.0,56670.0,0.19266]
[1725563012411,0.106817,56671.0,56670.0,0.54558]
[1725563014993,0.106817,56671.0,56670.0,0.19266]
[1725563015419,0.769388,56671.0,56670.0,0.0162]
[1725563015645,1.122302,56671.0,56670.0,0.0162]
[1725563017402,0.769388,56671.0,56670.0,0.0162]
[1725563017616,0.000817,56671.0,56670.0,0.0162]
[1725563018090,0.000817,56671.0,56670.0,0.01972883]
[1725563018309,0.000817,56671.0,56670.0,0.0162]
[1725563018751,0.000817,56671.0,56670.0,0.19266]
[1725563018956,0.000817,56671.0,56670.0,0.19618883]
[1725563020021,0.000817,56671.0,56670.0,0.01972883]
[1725563020282,0.000817,56671.0,56670.0,0.0162]
[1725563020488,0.415474,56671.0,56670.0,0.0162]
[1725563020693,0.768388,56671.0,56670.0,0.0162]
[1725563022034,1.121302,56671.0,56670.0,0.0162]
[1725563022212,1.474216,56671.0,56670.0,0.0162]
[1725563022491,1.121302,56671.0,56670.0,0.0162]
[1725563026165,1.474216,56671.0,56670.0,0.0162]
[1725563026379,1.121302,56671.0,56670.0,0.0162]
[1725563026627,1.474216,56671.0,56670.0,0.0162]
[1725563026828,1.121302,56671.0,56670.0,0.0162]
[1725563027630,1.474216,56671.0,56670.0,0.0162]
[1725563027865,1.121302,56671.0,56670.0,0.0162]
[1725563035614,0.987802,56671.0,56670.0,0.0162]
[1725563037605,0.000817,56671.0,56670.0,0.0162]
[1725563037832,0.177274,56671.0,56670.0,0.0162]
[1725563038280,0.000817,56671.0,56670.0,0.46997113]
[1725563038490,0.000817,56671.0,56670.0,1.06999113]
[1725563038709,0.000817,56671.0,56670.0,0.79620895]
[1725563039361,0.000817,56671.0,56670.0,1.14912895]
[1725563040715,0.281874,56671.0,56670.0,0.0162]
[1725563041193,0.634788,56671.0,56670.0,0.0162]
[1725563041421,0.987702,56671.0,56670.0,0.0162]
[1725563043318,0.000817,56671.0,56670.0,0.0162]
[1725563043547,0.000817,56671.0,56670.0,1.1576]
[1725563043774,0.000817,56671.0,56670.0,1.1556]
[1725563044004,0.000817,56671.0,56670.0,1.50852]
[1725563044459,0.000817,56671.0,56670.0,1.68403096]
[1725563044679,0.000817,56671.0,56670.0,2.12844735]
[1725563044928,0.000817,56671.0,56670.0,2.20782609]
[1725563045177,0.000817,56671.0,56670.0,2.1813603]
[1725563045446,0.000817,56671.0,56670.0,2.07552819]
[1725563045678,0.000817,56671.0,56670.0,2.18133859]
[1725563045940,0.000817,56671.0,56670.0,2.17233859]
[1725563047009,0.000817,56671.0,56670.0,2.15576136]
[1725563047235,0.000817,56671.0,56670.0,2.17933707]
[1725563047461,0.000817,56671.0,56670.0,2.16276136]
[1725563047689,0.000817,56671.0,56670.0,2.20732717]
[1725563047914,0.000817,56671.0,56670.0,2.05695096]
[1725563048140,0.000817,56671.0,56670.0,2.05952667]
[1725563048383,0.000817,56671.0,56670.0,2.07095096]
[1725563049290,0.000817,56671.0,56670.0,2.15027418]
[1725563050406,0.000817,56671.0,56670.0,2.14827418]
[1725563051092,0.000817,56671.0,56670.0,2.15027418]
[1725563051525,0.000817,56671.0,56670.0,2.07095096]
[1725563052449,0.000817,56671.0,56670.0,1.58333096]
[1725563052677,0.000817,56671.0,56670.0,1.60333096]
[1725563053147,0.000817,56671.0,56670.0,1.58333096]
[1725563054046,0.000817,56671.0,56670.0,1.60333096]
[1725563054266,0.000817,56671.0,56670.0,1.60533096]
[1725563054730,0.000817,56671.0,56670.0,2.06715096]
[1725563054957,0.000817,56671.0,56670.0,1.71423096]
[1725563055176,0.000817,56671.0,56670.0,2.06715096]
[1725563055402,0.000817,56671.0,56670.0,2.12001189]
[1725563055614,0.000817,56671.0,56670.0,2.06715096]
[1725563055876,0.000817,56671.0,56670.0,2.11999958]
[1725563056119,0.000817,56671.0,56670.0,2.06715096]
[1725563059497,0.000817,56671.0,56670.0,2.11999958]
[1725563059707,0.000817,56671.0,56670.0,2.06715096]
[1725563067888,0.000817,56671.0,56670.0,2.08372741]
[1725563068776,0.000817,56671.0,56670.0,2.06715096]
[1725563068967,0.000817,56671.0,56670.0,2.08372741]
[1725563069092,0.000817,56671.0,56670.0,2.06715096]
[1725563069306,0.000817,56671.0,56670.0,2.08372741]
[1725563069536,0.000817,56671.0,56670.0,2.06715096]
[1725563069780,0.000817,56671.0,56670.0,2.08372707]
[1725563070256,0.000817,56671.0,56670.0,2.06715096]
[1725563070463,0.000817,56671.0,56670.0,2.08372707]
[1725563071387,0.000817,56671.0,56670.0,2.06715096]
[1725563071583,0.000817,56671.0,56670.0,2.08372683]
[1725563072203,0.000817,56671.0,56670.0,2.06715096]
[1725563072400,0.000817,56671.0,56670.0,1.46893096]
[1725563073041,0.000817,56671.0,56670.0,1.48550852]
[1725563073249,0.000817,56671.0,56670.0,1.81842852]
[1725563073454,0.000817,56671.0,56670.0,1.48550852]
[1725563073660,0.000817,56671.0,56670.0,1.48750852]
[1725563074102,0.000817,56671.0,56670.0,1.48550852]
[1725563074473,0.000817,56671.0,56670.0,1.83842852]
[1725563074878,0.240817,56671.0,56670.0,0.04477756]
[1725563075173,0.770188,56671.0,56670.0,0.0282]
[1725563076050,0.770188,56671.0,56670.0,0.0142]
[1725563076735,0.770188,56671.0,56670.0,0.0002]
[1725563076962,0.770188,56671.0,56670.0,0.0282]
[1725563077181,0.770188,56671.0,56670.0,0.0142]
[1725563078489,0.770188,56671.0,56670.0,0.0002]
[1725563078706,0.770188,56671.0,56670.0,0.0122]
[1725563078943,0.417274,56671.0,56670.0,0.0122]
[1725563079192,0.240817,56671.0,56670.0,0.0242]
[1725563079407,0.417274,56671.0,56670.0,0.0242]
[1725563079629,0.770188,56671.0,56670.0,0.0242]
[1725563082654,1.123102,56671.0,56670.0,0.0242]
[1725563082864,0.770188,56671.0,56670.0,0.0242]
[1725563085894,1.123102,56671.0,56670.0,0.0242]
[1725563086129,1.39688418,56671.0,56670.0,0.0242]
[1725563086354,1.74979818,56671.0,56670.0,0.0242]
[1725563087465,1.476016,56671.0,56670.0,0.0242]
[1725563087897,1.48022394,56671.0,56670.0,0.0242]
[1725563088109,1.48022394,56671.0,56670.0,0.0122]
[1725563088552,1.48022394,56671.0,56670.0,0.0032]
[1725563089217,1.48122394,56671.0,56670.0,0.0002]
[1725563089648,1.48222394,56671.0,56670.0,0.0002]
[1725563090958,1.71202394,56671.0,56670.0,0.0002]
[1725563092894,2.06493794,56671.0,56670.0,0.0002]
[1725563093333,1.71202394,56671.0,56670.0,0.0002]
[1725563097068,1.71202394,56671.0,56670.0,0.001832]
[1725563097279,1.71283994,56671.0,56670.0,0.001832]
[1725563098146,1.58413994,56671.0,56670.0,0.001832]
[1725563100387,1.31035776,56671.0,56670.0,0.001832]
[1725563103903,1.30935776,56671.0,56670.0,0.001832]
[1725563104168,0.102916,56671.0,56670.0,0.001832]
[1725563104400,0.002816,56671.0,56670.0,1.480352]
[1725563104628,0.001816,56671.0,56670.0,1.480352]
[1725563104861,0.001816,56671.0,56670.0,1.66586296]
[1725563105102,0.002816,56671.0,56670.0,1.66586296]
[1725563105326,0.000816,56671.0,56670.0,1.66586296]
[1725563106284,0.000816,56671.0,56670.0,1.67186296]
[1725563106488,0.000816,56671.0,56670.0,1.66586296]
[1725563106926,0.000816,56671.0,56670.0,1.69386296]
[1725563108449,0.000816,56671.0,56670.0,1.508352]
[1725563108674,0.000816,56671.0,56670.0,1.155432]
[1725563109380,0.000816,56671.0,56670.0,1.173072]
[1725563111561,0.000816,56671.0,56670.0,1.525992]
[1725563112691,0.000816,56671.0,56670.0,0.710252]
[1725563112919,0.000816,56671.0,56670.0,0.576852]
[1725563113368,0.000816,56671.0,56670.0,0.047472]
[1725563115370,0.530187,56671.0,56670.0,0.047472]
[1725563116985,0.883101,56671.0,56670.0,0.047472]
[1725563117204,1.26018318,56671.0,56670.0,0.047472]
[1725563117414,1.61309718,56671.0,56670.0,0.047472]
[1725563118313,1.74679718,56671.0,56670.0,0.033472]
[1725563118974,1.49148949,56671.0,56670.0,0.033472]
[1725563119231,1.66794649,56671.0,56670.0,0.031472]
[1725563119843,1.66876249,56671.0,56670.0,0.030472]
[1725563120275,1.66876249,56671.0,56670.0,0.041472]
[1725563120695,1.66876249,56671.0,56670.0,0.030472]
[1725563120917,0.90836631,56671.0,56670.0,0.030472]
[1725563121128,0.90836631,56671.0,56670.0,0.036472]
[1725563121339,1.26128031,56671.0,56670.0,0.036472]
[1725563121828,1.26128031,56671.0,56670.0,0.025472]
[1725563122254,1.26128031,56671.0,56670.0,0.031472]
[1725563122471,1.53506249,56671.0,56670.0,0.031472]
[1725563123375,1.66876249,56671.0,56670.0,0.031472]
[1725563127824,1.53506249,56671.0,56670.0,0.031472]
[1725563129740,1.53506249,56671.0,56670.0,0.031272]
[1725563129741,2.66618587,56671.0,56670.0,0.031272]
[1725563129954,2.64104547,56671.0,56670.0,0.031272]
[1725563130175,2.17503147,56671.0,56670.0,0.031272]
[1725563130860,2.17503147,56671.0,56670.0,0.025272]
[1725563131081,1.82211747,56671.0,56670.0,0.025272]
[1725563131298,1.82211747,56671.0,56670.0,0.019272]
[1725563131511,1.82311747,56671.0,56670.0,0.019272]
[1725563132204,1.68771747,56671.0,56670.0,0.019272]
[1725563132421,1.68671747,56671.0,56670.0,0.019272]
[1725563132638,1.68571747,56671.0,56670.0,0.019272]
[1725563132853,1.68771747,56671.0,56670.0,0.020272]
[1725563133518,1.68971747,56671.0,56670.0,0.021272]
[1725563136052,0.93672129,56671.0,56670.0,0.269972]
[1725563136735,1.28763529,56671.0,56670.0,0.160572]
[1725563136959,0.93472129,56671.0,56670.0,0.160572]
[1725563137211,0.93672129,56671.0,56670.0,0.160572]
[1725563137454,0.90906631,56671.0,56670.0,0.160572]
[1725563138129,0.90706631,56671.0,56670.0,0.159572]
[1725563138351,1.53376249,56671.0,56670.0,0.019272]
[1725563138595,1.64446249,56671.0,56670.0,0.019272]
[1725563138828,1.64846249,56671.0,56670.0,0.019472]
[1725563139304,1.67146249,56671.0,56670.0,0.019272]
[1725563140504,1.57803449,56671.0,56670.0,0.019272]
[1725563141194,1.93094849,56671.0,56670.0,0.019272]
[1725563141425,1.82593449,56671.0,56670.0,0.019272]
[1725563141836,2.17884849,56671.0,56670.0,0.019272]
[1725563143051,2.23161661,56671.0,56670.0,0.019272]
[1725563144640,2.26967051,56671.0,56670.0,0.019272]
[1725563145547,2.21690239,56671.0,56670.0,0.019272]
[1725563148653,2.21890239,56671.0,56670.0,0.019272]
[1725563149147,1.85330324,56671.0,56670.0,0.019272]
[1725563149818,2.20621724,56671.0,56670.0,0.019272]
[1725563150260,2.20421724,56671.0,56670.0,0.019272]
[1725563150482,2.20621724,56671.0,56670.0,0.019272]
[1725563150695,2.20421724,56671.0,56670.0,0.019272]
[1725563151126,2.20621724,56671.0,56670.0,0.019272]
[1725563151347,2.20421724,56671.0,56670.0,0.019272]
[1725563152911,2.06971724,56671.0,56670.0,0.019272]
[1725563153124,1.95631724,56671.0,56670.0,0.019272]
[1725563156567,2.00906126,56671.0,56670.0,0.019272]
[1725563156790,2.00912709,56671.0,56670.0,0.019272]
[1725563157690,1.95631724,56671.0,56670.0,0.019272]
[1725563159009,1.60340324,56671.0,56670.0,0.019272]
[1725563159234,1.61847395,56671.0,56670.0,0.019272]
[1725563159464,1.67131801,56671.0,56670.0,0.019272]
[1725563159686,1.61847395,56671.0,56670.0,0.019272]
[1725563160380,1.67132781,56671.0,56670.0,0.019272]
[1725563160651,1.69768873,56671.0,56670.0,0.019272]
[1725563161091,1.69775547,56671.0,56670.0,0.019272]
[1725563161307,1.61847395,56671.0,56670.0,0.019272]
[1725563161523,1.69775547,56671.0,56670.0,0.019272]
[1725563162639,1.61847395,56671.0,56670.0,0.019272]
[1725563163334,1.58040324,56671.0,56670.0,0.019272]
[1725563163556,1.65973277,56671.0,56670.0,0.019272]
[1725563164026,1.58040324,56671.0,56670.0,0.019272]
[1725563164248,1.72404833,56671.0,56670.0,0.019272]
[1725563164486,2.59070351,56671.0,56670.0,0.019272]
[1725563164716,2.59070351,56671.0,56662.0,0.001632]
[1725563164717,1.50915618,56663.0,56662.0,0.001632]
[1725563164957,2.11920946,56663.0,56662.0,0.001632]
[1725563165175,2.48942058,56663.0,56662.0,0.001632]
[1725563165409,2.50786486,56663.0,56662.0,0.001632]
[1725563165650,2.25862611,56663.0,56662.0,0.001632]
[1725563166320,2.26562611,56663.0,56662.0,0.002632]
[1725563166558,2.26762611,56663.0,56662.0,0.002632]
[1725563166787,2.26962611,56663.0,56662.0,0.002632]
[1725563167897,2.26762611,56663.0,56662.0,0.002632]
[1725563168117,2.27362611,56663.0,56662.0,0.002632]
[1725563168773,2.27162611,56663.0,56662.0,0.002632]
[1725563169004,2.16590086,56663.0,56662.0,0.002632]
[1725563169220,2.27162611,56663.0,56662.0,0.002632]
[1725563169436,2.27362611,56663.0,56662.0,0.002632]
[1725563169660,2.16790086,56663.0,56662.0,0.002632]
[1725563169904,2.1808336,56663.0,56662.0,0.002632]
[1725563170836,2.1428972,56663.0,56662.0,0.002632]
[1725563171271,2.1408972,56663.0,56662.0,0.002632]
[1725563171933,2.4958612,56663.0,56662.0,0.002632]
[1725563172629,3.39312606,56663.0,56662.0,0.002632]
[1725563172867,2.047576,56652.0,56651.0,0.04910488]
[1725563173120,0.353082,56644.0,56643.0,0.129532]
[1725563173344,1.50956918,56644.0,56643.0,0.129532]
[1725563173582,1.86265118,56644.0,56643.0,0.129532]
[1725563174525,1.89065118,56644.0,56643.0,0.129532]
[1725563175666,1.89565118,56644.0,56643.0,0.129532]
[1725563177473,1.53302033,56644.0,56643.0,0.129732]
[1725563179242,1.53302033,56644.0,56643.0,0.240632]
[1725563179735,1.51956918,56644.0,56643.0,0.240632]
[1725563180384,1.51956918,56644.0,56643.0,0.240432]
[1725563180837,1.53801346,56644.0,56643.0,0.240432]
[1725563181271,1.53801346,56644.0,56643.0,0.129532]
[1725563182137,1.53801346,56644.0,56643.0,0.001632]
[1725563183053,1.53801346,56644.0,56643.0,0.244032]
[1725563183294,0.91114928,56644.0,56643.0,0.244232]
[1725563184204,0.90114928,56644.0,56643.0,0.244232]
[1725563184663,0.90314928,56644.0,56643.0,0.244232]
[1725563188063,0.55006728,56644.0,56643.0,0.244232]
[1725563189443,0.54906728,56644.0,56643.0,0.244232]
[1725563189642,0.54906728,56644.0,56643.0,0.246232]
[1725563189851,0.01844428,56644.0,56643.0,0.246232]
[1725563190061,0.01844428,56644.0,56643.0,0.422776]
[1725563190265,0.01844428,56644.0,56643.0,0.423776]
[1725563190479,0.01844428,56644.0,56643.0,0.776864]
[1725563192179,0.01844428,56644.0,56643.0,0.423776]
[1725563193284,0.01844428,56644.0,56643.0,0.247232]
[1725563193991,0.54806728,56644.0,56643.0,0.247232]
[1725563194221,0.54806728,56644.0,56643.0,0.137132]
[1725563194222,1.25423128,56644.0,56643.0,0.137132]
[1725563194433,1.25423128,56644.0,56643.0,0.004832]
[1725563195742,1.25400231,56644.0,56643.0,0.004832]
[1725563196179,1.26700146,56644.0,56643.0,0.004832]
[1725563196406,1.37920146,56644.0,56643.0,0.004832]
[1725563197882,1.26700146,56644.0,56643.0,0.004832]
[1725563198793,1.26700146,56644.0,56643.0,0.004632]
[1725563201158,1.26700146,56644.0,56643.0,0.114032]
[1725563202065,0.90092031,56644.0,56643.0,0.246332]
[1725563204462,0.90092031,56644.0,56643.0,0.241332]
[1725563209594,0.52966,56640.0,56639.0,0.1023]
[1725563210264,0.52966,56640.0,56639.0,0.0973]
[1725563210661,0.882767,56640.0,56639.0,0.0973]
[1725563211599,0.882767,56640.0,56638.0,0.1377]
[1725563211600,0.882782,56639.0,56638.0,0.1377]
[1725563212324,0.882782,56639.0,56632.0,0.22650324]
[1725563212325,0.529716,56634.0,56633.0,0.1392]
[1725563212532,1.15664218,56634.0,56633.0,0.1392]
[1725563212970,0.80349818,56634.0,56633.0,0.1392]
[1725563213214,0.529716,56634.0,56633.0,0.2501]
[1725563213438,0.88286,56634.0,56633.0,0.2501]
[1725563213669,0.529716,56634.0,56633.0,0.2501]